Cogmind - Beta 10.1 @@@ ROGUE MODE // 2020.10.27 @ 19:22:03 Player: Atherys Result: Destroyed by as-41589 with Assembled Heavy Rifle Performance ------------- Evolutions (0) 0 Regions Visited (2) 400 Robots Destroyed (7) 35 Value Destroyed (81) 81 Prototype IDs (0) 0 Alien Tech Used (0) 0 Bonus (0) 0 TOTAL SCORE: 516 Bonus ------- None Cogmind --------- Core Integrity 0/250 Matter 292/300 Energy 100/100 System Corruption 0% Temperature Cool (40) Movement Walking (210) Ox3 Location -10/Mines Parts ------- > --- POWER (1) -------- (None) > --- PROPULSION (2) --- Aluminum Leg > --- UTILITY (2) ------ Large Storage Unit Large Storage Unit > --- WEAPON (2) ------- Light Assault Rifle > --- INVENTORY (16) --- High-capacity Storage Unit Small Battery (100) Medium Matter Pod (100) Sensor Array Weapon Shielding Light Assault Rifle Peak State ------------ > --- POWER ------------ Ion Engine > --- PROPULSION ------- Aluminum Leg Aluminum Leg > --- UTILITY ---------- Small Storage Unit Large Storage Unit > --- WEAPON ----------- Light Assault Rifle Light Assault Rifle > --- INVENTORY -------- (None) [Rating: 7] Favorites ----------- Power Ion Engine Engine Ion Engine Propulsion Aluminum Leg Leg Aluminum Leg Utility Large Storage Unit Storage Large Storage Unit Weapon Light Assault Rifle Energy Gun EM Pulse Gun Ballistic Gun Light Assault Rifle Launcher Rocket Launcher Build | -11 -10 -10 ------- Run | Scr Mat Min Slots Evolved . | . . . Power . | . . . Propulsion . | . . . Utility . | . . . Weapon . | . . . Parts Attached 10 | 6 2 2 Power 1 | 1 . . Engine 1 | 1 . . Core . | . . . Reactor . | . . . Propulsion 2 | 2 . . Treads . | . . . Leg 2 | 2 . . Wheel . | . . . Hover . | . . . Flight . | . . . Utility 3 | 1 2 . Device . | . . . Storage 3 | 1 2 . Processor . | . . . Hackware . | . . . Protection . | . . . Artifact . | . . . Weapon 4 | 2 . 2 Energy Gun 1 | . . 1 Energy Cannon . | . . . Ballistic Gun 2 | 2 . . Ballistic Cannon . | . . . Launcher 1 | . . 1 Special Weapon . | . . . Impact Weapon . | . . . Slashing Weapon . | . . . Piercing Weapon . | . . . Special Melee Weapon . | . . . Unidentified Prototypes . | . . . Parts Lost 4 | . . 4 Power 1 | . . 1 Propulsion 1 | . . 1 Utility . | . . . Weapon 2 | . . 2 Highest Loss Streak 4 | . . 4 Average Slot Usage (%) 98 | . 99 98 Engine 13 | . 14 13 Leg 27 | . 28 27 Storage 27 | . 27 28 Ballistic Gun 27 | . 28 26 Naked Turns . | . . . Heaviest Build 40 | 11 39 40 Greatest Support 20 | 20 20 20 Greatest Overweight (x) 3 | . 1 3 Average Overweight (x) . | . . 1 Largest Inventory Capacity 16 | 6 16 16 Average Capacity 14 | 5 15 16 Most Carried 7 | . 3 7 Average Carried 2 | . . 5 Final Capacity 16 | 6 16 16 Final Carried 6 | . 3 6 Class Distribution -------------------- 100% | Mutant Dominant Class ---------------- Mutant | -10/Materials Mutant | -10/Mines Resources | -11 -10 -10 ----------- Run | Scr Mat Min Matter Collected 400 | 167 30 203 Remotely . | . . . Salvage Created 133 | . . 133 Parts 2 | . . 2 Haulers Intercepted . | . . . Recyclers Shooed . | . . . Parts Field Recycled . | . . . Retrieved Matter . | . . . Parts Self-Destructed . | . . . Prevented . | . . . Kills | -11 -10 -10 ------- Run | Scr Mat Min Combat Hostiles Destroyed 7 | . . 7 Guns 2 | . . 2 AOE 5 | . . 5 Classes Destroyed 2 | . . 2 Grunt 2 | . . 2 Assembled 5 | . . 5 Best Kill Streak 5 | . . 5 Combat Bots Only 5 | . . 5 Max Kills in Single Turn 5 | . . 5 Gunslinging . | . . . Exploded 5 | . . 5 Melee . | . . . Uniques/NPCs Destroyed . | . . . Combat | -11 -10 -10 -------- Run | Scr Mat Min Damage Taken 771 | . . 771 Core 250 | . . 250 Absorbed by Shields . | . . . Core Remaining (%) 100 | 100 . . Volleys Fired 11 | . 1 10 Largest 2 | . 2 2 Hottest 53 | . 40 53 Shots Fired 21 | . 2 19 Gun 20 | . 2 18 Cannon . | . . . Launcher 1 | . . 1 Special . | . . . Kinetic 20 | . 2 18 Thermal . | . . . Explosive 1 | . . 1 Electromagnetic . | . . . Robot Hit Streak 6 | . 2 6 Robot Miss Streak 6 | . . 6 Penetration Max . | . . . Secondary Targets 1 | . . 1 Max Gunslinging Chain 1 | . . 1 Shots Hit Robots 10 | . 2 8 Core Hits 17 | . 1 16 Critical Hits . | . . . Critical Kills . | . . . Critical Parts Destroyed . | . . . Melee Attacks . | . . . Impact . | . . . Slashing . | . . . Piercing . | . . . Sneak Attacks . | . . . Combat Hostiles . | . . . Follow-up Attacks . | . . . Damage Inflicted 407 | . 14 393 Guns 110 | . 14 96 Cannons . | . . . Explosions 291 | . . 291 Melee . | . . . Ramming 6 | . . 6 Kinetic 110 | . 14 96 Thermal . | . . . Explosive 291 | . . 291 Electromagnetic . | . . . Impact . | . . . Slashing . | . . . Piercing . | . . . Highest Corruption . | . . . Average Corruption . | . . . Corruption Purged . | . . . Overload Shots . | . . . Overflow Damage . | . . . Projectiles . | . . . Explosions . | . . . Melee . | . . . Knockbacks . | . . . Impact . | . . . Kinetic . | . . . Secondary . | . . . Self-Inflicted Damage 51 | . . 51 Shots 1 | . . 1 Rammed 1 | . . 1 Targets Rammed 1 | . . 1 Kicked . | . . . Crushed . | . . . Highest Temperature 9 | . . 9 Average Temperature 6 | . . 6 Received Heat Transfer 113 | . . 113 Siege Activations . | . . . Robots Corrupted . | . . . Combat Hostiles . | . . . Parts Fried . | . . . Impact Corruptions . | . . . Robots Melted . | . . . Combat Hostiles . | . . . Parts Melted . | . . . Heat Transferred . | . . . Parts Sabotaged . | . . . Parts Stolen . | . . . Parts Stripped . | . . . Power Chain Reactions . | . . . Missiles Intercepted . | . . . Alert | -11 -10 -10 ------- Run | Scr Mat Min Peak Influence 70 | . 15 70 Initial 5 | . . 5 Average 20 | . 8 38 Maximum Alert Level . | . . . Low Security (%) 100 | 100 100 100 Level 1 . | . . . Level 2 . | . . . Level 3 . | . . . Level 4 . | . . . Level 5 . | . . . High Security . | . . . Max Security . | . . . Squads Dispatched 2 | . 2 . Investigation 1 | . 1 . Extermination . | . . . Reinforcement 1 | . 1 . Assault . | . . . Garrison . | . . . Intercept . | . . . Construction Impeded . | . . . Haulers Reinforced . | . . . Stealth | -11 -10 -10 --------- Run | Scr Mat Min Distress Signals . | . . . Communications Jammed . | . . . Distress Signals . | . . . Times Spotted 21 | . 2 19 Peak Tracking Total 13 | . 1 13 Tactical Retreats . | . . . Traps | -11 -10 -10 ------- Run | Scr Mat Min Traps Triggered . | . . . Indirectly . | . . . Trap Hack Attempts . | . . . Triggered . | . . . Disarmed . | . . . Reprogrammed . | . . . Reused . | . . . Traps Extracted . | . . . Installed . | . . . Triggered . | . . . Machines | -11 -10 -10 ---------- Run | Scr Mat Min Machines Disabled . | . . . Max in Single Turn . | . . . Machines Sabotaged . | . . . Garrisons Compromised . | . . . Overloaded Fab Kills . | . . . Fab Network Shutdowns . | . . . Hacking | -11 -10 -10 --------- Run | Scr Mat Min Machines Accessed 1 | . 1 . Terminals 1 | . 1 . Fabricators . | . . . Repair Stations . | . . . Recycling Units . | . . . Scanalyzers . | . . . Garrison Access . | . . . Total Hacks 2 | . 2 . Successful 2 | . 2 . Failed . | . . . Catastrophic . | . . . Database Lockouts . | . . . Manual 2 | . 2 . Terminals 2 | . 2 . Fabricators . | . . . Repair Stations . | . . . Recycling Units . | . . . Scanalyzers . | . . . Garrison Access . | . . . Terminal Hacks . | . . . Fabricator Hacks . | . . . Repair Station Hacks . | . . . Recycling Unit Hacks . | . . . Scanalyzer . | . . . Garrison Access Hacks . | . . . Unauthorized Hacks 2 | . 2 . Terminals 2 | . 2 . Track 1 | . 1 . Operators 1 | . 1 . Fabricators . | . . . Repair Stations . | . . . Recycling Units . | . . . Scanalyzers . | . . . Garrison Access . | . . . Data Cores Recovered . | . . . Used . | . . . Hacking Detections . | . . . Full Trace Events . | . . . Feedback Events . | . . . Feedback Blocked . | . . . Robot Schematics Acquired . | . . . Robots Built . | . . . Matter . | . . . Time . | . . . Total Robot Build Rating . | . . . Part Schematics Acquired . | . . . Parts Built . | . . . Matter . | . . . Time . | . . . Total Part Build Rating . | . . . Parts Repaired . | . . . Time . | . . . Parts Recycled . | . . . Recycled Matter . | . . . Retrieved Matter . | . . . Retrieved Components . | . . . Parts Scanalyzed . | . . . Part Schematics Acquired . | . . . Parts Damaged . | . . . Bothacking | -11 -10 -10 ------------ Run | Scr Mat Min Used RIF Installer . | . . . Robots Hacked . | . . . Non-combat . | . . . Combat . | . . . Robot Hacks Applied . | . . . Relay Couplers Released . | . . . Robots Rewired . | . . . Allies Hacked . | . . . Hacks Repelled . | . . . Allies | -11 -10 -10 -------- Run | Scr Mat Min Total Allies . | . . . Largest Group . | . . . Highest-Rated Group . | . . . Highest-Rated Ally . | . . . Total Orders . | . . . Ally Attacks . | . . . Total Damage . | . . . Kills . | . . . Allies Corrupted . | . . . Allies Melted 1 | . . 1 Intel | -11 -10 -10 ------- Run | Scr Mat Min Robot Analysis Total . | . . . Derelict Logs Recovered . | . . . Drone Launches . | . . . Drone Recoveries . | . . . Exploration | -11 -10 -10 ------------- Run | Scr Mat Min Turns Passed 419 | 67 166 186 Spaces Moved 256 | 51 104 101 Core 4 | 4 . . Treads . | . . . Legs 252 | 47 104 101 Wheels . | . . . Hover . | . . . Flight . | . . . Fastest Speed 50 | 50 120 150 Average Speed 142 | 114 148 150 Slowest Speed 210 | 120 150 210 Overloaded Moves . | . . . Propulsion Burnouts . | . . . Robots Hopped . | . . . Cave-ins Triggered . | . . . Exploration Rate (%) 15 | 3 19 24 Regions Visited 2 Branch Regions 1 Pre-discovered Areas . | . . . Known Exits Taken . | . . . Unknown Exits Taken 2 | 1 1 . Scrap Searched 2 | . . 2 Spaces Dug . | . . . Terrain Destroyed 14 | . . 14 Melee . | . . . Projectile . | . . . AOE 14 | . . 14 Terrain Rammed . | . . . Walls Destroyed . | . . . Machines Disabled . | . . . Actions | -11 -10 -10 --------- Run | Scr Mat Min Total 288 | 56 113 119 Wait 4 | . 3 1 Move 254 | 50 103 101 Hop . | . . . Pick Up 7 | . 3 4 Fast Attach 7 | 6 1 . Attach 1 | . . 1 Detach . | . . . Swap 2 | . 1 1 Drop 1 | . 1 . Fire 11 | . 1 10 Melee . | . . . Ram . | . . . Kick 1 | . . 1 Crush . | . . . Escape Stasis . | . . . Rewire . | . . . Trap . | . . . Miscellaneous . | . . . Route ------- -11/Scrapyard -10/Materials -10/Mines History --------- Turn | Location | Event 3 | -11/Scrapyard | Discovered new exit (range 15) 68 | -11/Scrapyard | Entered Materials 186 | -10/Materials | Met 8R-AWN 216 | -10/Materials | Discovered new exit (range 6) 234 | -10/Materials | Entered Mines 236 | -10/Mines | Followed 8R-AWN into the Mines 241 | -10/Mines | Received a Rocket Launcher from a helpful Derelict 254 | -10/Mines | Met a Derelict bent on vengeance 309 | -10/Mines | Build established: Mutant 386 | -10/Mines | Assembled infested the area 391 | -10/Mines | Assisted by a Guerilla fighting off Assembled 416 | -10/Mines | Core integrity fell below 50% 419 | -10/Mines | Core integrity fell below 20% 420 | -10/Mines | Destroyed by as-41589 with Assembled Heavy Rifle Last Messages --------------- 00401_ HV Slug penetrates Wall. 00406_ NN-DLM(h) heat damages core (-18). 00406_ HV Slug penetrates as-20592. 00406_ HV Slug penetrates Wall. 00406_ NN-DLM(h) destroyed. 00410_ U-05 Engineer destroyed. 00411_ EM Pulse Gun destroyed. 00413_ Ion Engine destroyed. 00415_ as-57003 destroyed. 00415_ as-22831 destroyed. 00415_ as-94033 destroyed. 00415_ as-05169 destroyed. 00415_ as-74511 destroyed. [Achievement: Quick And Dirty] 00417_ U-05 Engineer lays Concrete. 00417_ Slammed into as-01801. 00418_ Acquired 10 matter. 00418_ Aluminum Leg destroyed. 00419_ U-05 Engineer lays Concrete. 00420_ Rocket Launcher destroyed. Map ----- +----------------------------------------------------+ | ???????????????????????????????????? | | ???????????????????????????????????? | | ???????????????????????????????????? | | ???????????????????????????????????? | | ???????????????????????????????????? | | ???????????????????????????????????? | | ???????????????????????????????????? | | ???????????????????????????????????? | | ???????????????????????????????????? | | ???????????????????????????????????? | | ??????????????????????????#????????? | | ?????????????????????????# #???????? | | ???????????????????????###;#???????? | | ???????????????????????? #???????? | | ???????????????????????? ##??????? | | ????????????????????????# ;#??????? | | ????????????????????????"a ;#??????? | | ????????????????????????#%%;???????? | | ????????????????????????#aa;???????? | | ????????????????????????#% ;???????? | | ???????????????????????## #???????? | | ????????????? ?????????# aa###?????? | | ?????????????? ???????#aa #?????? | | ?????????????? ??????# a #?????? | | ??????????????? ###??# a a #?????? | | ????????????? ??? ?# @a ##?????? | | ???????????# ??? #??????? | | ???????????? ## # ##??????? | | ???????????? ????## #u #?####??? | | ????????????? ?????# ### ##?? | | ?????????????? ???# # #?? | | ??????????????? ???# # [%#?? | | ???????????????? ## ##### ##?? | | ???????????????? ?# ##??? | | ????????????????? ??# ### ##???? | | ????????????????## ??# #?####????? | | ?????????????????## #??# #?????????? | | ??????????????????# #### #?????????? | | ??????????????????# #?????????? | | ??????????????????# ############???? | | ???????????######## ####### ##??? | | ???????????# ## # #??? | | ???????????# """= % #??? | | ???????????# """%% #??? | | ???????????# """ ### ## = #??? | | ???????????# #?# #### #??? | | ???????????# #?# #??#! ##?? | | ???????????#######?# #??# #?? | | ???????????????????# ??# #?? | | ???????????????????## #?#[ # ##?? | +----------------------------------------------------+ Best States ------------- Heat Dissipation 25 Energy Generation 10 Energy Capacity 250 Matter Stores 300 Matter Capacity 300 Sight Range 16 Terrain Scan Density 10 Evasion (%) 40 Item Schematics ----------------- None Robot Schematics ------------------ None Fabricated ------------ Nothing Alien Tech Used ----------------- None Achievements -------------- Quick And Dirty Challenges ------------ None Game ------ Seed HelicalMakeshiftSink Manual? 0 Play Time 00:08:35 Cumulative 13.2 hours Start 2020.10.27 @ 19:16:11 End 2020.10.27 @ 19:22:03 Sessions 1 Manual Loads 0 Difficulty Rogue Special Mode None Game No. 18 Rogue 18 Adventurer 0 Explorer 0 Win Type - Total 0 Types 0/0/0/0/0/0/0/0/0 Lore% 19 Gallery% 19 Achievement% 17 Wizard Run 0 Options --------- ASCII 0 Keyboard 0 Movement Mouse Keybinds 0 Fullscreen 2 Font 24/Smallcaps Map View 76x50 Tactical HUD 1 Map Filters NONE Filters NONE Steam X RUN: b2efd910-b067-4322-a624-bfa75c8f375f